Workbook

Sheet At a glance
B2: INDUSTRIAL RELATIONS
B4: Anlu Keeve
B6: At a glancea
B7: Number of employed people (2024) | C7: 16.65m
B8: — Proportion in formal (non-agricultural) sector | C8: 0.689
B9: — Proportion in informal (non-agricultural) sector | C9: 0.188
B10: — Proportion in agriculture (formal and informal) sector | C10: 0.054
B11: — Proportion in private households | C11: 0.07
B12: Proportion of employees on a permanent contract/agreement (2024) | C12: 0.6
B13: Change in number of employees on a permanent contract/agreement (2019-24) | C13: -0.005
B14: Proportion of employees on a limited contract/agreement (2024) | C14: 0.147
B15: Change in number of employees on a limited contract/agreement (2019-24) | C15: 0.122
B16: Proportion of employees with access to paid sick leave (2024) | C16: 0.724
B17: Proportion of employees with access to medical aid (2024) | C17: 0.307
B18: Number of active registered trade unions (2023/24) | C18: 216
B19: Change in active registered trade unions (1995/96-2023/24) | C19: -0.129
B20: Trade union membership (2020/21) | C20: 3.11m
B21: — as proportion of total employment (2020/21) | C21: 0.2
B22: — as a proportion of economically active population (2020/21) | C22: 0.132
B23: Change in trade union membership (2019/20-2020/21) | C23: -0.232
B24: Union with highest number of affiliates — FEDUSA (2024) | C24: 20
B25: Union with lowest number of affiliates — CONSAWU (2024) | C25: 3
B26: Number of registered employer organisations (2023/24) | C26: 145
B27: Average wage settlement | C27: 0.063
B28: Total number of work stoppages | C28: 97
B29: Working days lost to strikes | C29: 4.9m
B30: Union with the biggest share of working days lost to strike action (PSA, NEHAWU and Others) | C30: 0.949
B31: Proportion of strikes unprotected | C31: 0.42
B32: a Figures are for 2023, unless otherwise indicated in brackets.

Sheet STRUCTURE OF EMPLOYMENT

Sheet Total employed 2001-24
A2: STRUCTURE OF EMPLOYMENT
A4: Total employed, 2008 and 2024
B6: —Number employed— | E6: Proportion of total —employeda—
A7: Sector | B7: 2008 | C7: 2023 | D7: 2024 | E7: 2008 | F7: 2023 | G7: 2024
A8: Formal (non-agricultural) | B8: 9415000 | C8: 11329000 | D8: 11467000 | E8: 0.6857746376 | F8: =C8/C12 -> 0.6930747584 | G8: =D8/D12 -> 0.6886259909
A9: Informal (non-agricultural) | B9: 2340000 | C9: 3029000 | D9: 3129000 | E9: 0.1704421298 | F9: =C9/C12 -> 0.1853052735 | G9: =D9/D12 -> 0.1879053567
A10: Agriculture (formal and informal) | B10: 790000 | C10: 894000 | D10: 896000 | E10: 0.05754242844 | F10: =C10/C12 -> 0.05469227946 | G10: =D10/D12 -> 0.05380735047
A11: Private households | B11: 1185000 | C11: 1093000 | D11: 1160000 | E11: 0.08631364265 | F11: =C11/C12 -> 0.06686651168 | G11: =D11/D12 -> 0.06966130195
A12: Total | B12: 13729000 | C12: 16346000 | D12: 16652000 | E12: 1 | F12: 1 | G12: =D12/D12 -> 1
A13: Source: Statistics South Africa (Stats SA), Quarterly Labour Force Survey (QLFS) Quarter 1 and Quarter 2, 2008, 28 August 2008, Table A, pv; QLFS Quarter 2: 2022, 23 August 2022, p2; QLFS Quarter 2: 2023, 21 August 2023, p1; QLFS Quarter 2: 2024, 13 August 2024, p1
A14: a CRA calculations.

Sheet Employment by contract.2017-24
B2: Employment by nature of contract/agreement, 2017-24
B4: Nature of contract/agreement | C4: 2017 | D4: 2019 | E4: 2021 | F4: 2023 | G4: 2024 | H4: Change 2017-24
B5: Male | C5: 7444000 | D5: 7470000 | E5: 6818000 | F5: 7456000 | G5: 7509000 | H5: =(G5-C5)/C5 -> 0.008731864589
B6: Limited duration | C6: 867000 | D6: 887000 | E6: 800000 | F6: 1059000 | G6: 1005000 | H6: 0.1591695502
B7: Permanent nature | C7: 4754000 | D7: 4684000 | E7: 4377000 | F7: 4545000 | G7: 4526000 | H7: -0.04795961296
B8: Unspecified duration | C8: 1823000 | D8: 1899000 | E8: 1641000 | F8: 1852000 | G8: 1979000 | H8: 0.08557323094
B9: Female | C9: 6169000 | D9: 6183000 | E9: 5642000 | F9: 6199000 | G9: 6410000 | H9: 0.03906629924
B10: Limited duration | C10: 919000 | D10: 939000 | E10: 882000 | F10: 1104000 | G10: 1043000 | H10: 0.1349292709
B11: Permanent nature | C11: 3673000 | D11: 3719000 | E11: 3409000 | F11: 3591000 | G11: 3832000 | H11: 0.04328886469
B12: Unspecified duration | C12: 1577000 | D12: 1526000 | E12: 1352000 | F12: 1504000 | G12: 1534000 | H12: -0.02726696259
B13: Total | C13: 13613000 | D13: 13653000 | E13: 12460000 | F13: 13656000 | G13: 13919000 | H13: 0.02247851319
B14: Limited duration | C14: 1786000 | D14: 1826000 | E14: 1681000 | F14: 2163000 | G14: 2048000 | H14: 0.1466965286
B15: Permanent nature | C15: 8427000 | D15: 8403000 | E15: 7786000 | F15: 8136000 | G15: 8358000 | H15: -0.008187967248
B16: Unspecified duration | C16: 3400000 | D16: 3424000 | E16: 2993000 | F16: 3357000 | G16: 3513000 | H16: 0.03323529412
B17: Source: Stats SA, Quarterly Labour Force Survey Quarter 2: 2019, Statistical release P0211, 30 July 2019, p69; QLFS Quarter 2: 2021, Statistical release P0211, 24 August 2021, p76; QLFS Quarter 2: 2022, Statistical release P0211, 23 August 2022, p72; QLFS Quarter 2: 2023, Statistical release P0211, 21 August 2023, p71; QLFS Quarter 2: 2024, Statistical Release P0211, 13 August 2024

Sheet ORGANISATIONS

Sheet Trade un. +empl.orgs.12-24
A2: EMPLOYEE AND EMPLOYER ORGANISATIONS
A4: Registered employee and employer organisations, 2012/13-2023/24
A6: Organisation | B6: 2012/13 | C6: 2016/17 | D6: 2021/22 | E6: 2023/24 | F6: Change 2012/13-2023/24
A7: Active registered trade unions | B7: 208 | C7: 191 | D7: 216 | E7: 216 | F7: =(E7-B7)/B7 -> 0.03846153846
A8: Membership of trade unions | B8: 3028400 | C8: 3926025 | D8: 3 110 000 (2020/21) | E8: N/A | F8: —
A9: Registered employer organisations | B9: 163 | C9: 155 | D9: 148 | E9: 145 | F9: =(E9-B9)/B9 -> -0.1104294479
A10: Membership of employer organisations | B10: 56251 | C10: 64836 | D10: 70186 | E10: N/A | F10: —
A11: Bargaining councils | B11: 47 | C11: 47 | D11: 48 | E11: 39 | F11: =(E11-B11)/B11 -> -0.170212766
A12: Source: Department of Employment and Labour, www.labour.gov.za, accessed 20 September 2024

Sheet Trade unions

Sheet Trade union membership.1995-23
B2: Trade unions
B4: Trade unionsa and membership, 1995/96-2022/23
C6: Active registered trade unions | D6: Registered trade union membershipc | E6: —Registered union membershipb—
B7: Year | E7: as a share of total employment | F7: as a share of the EAPd
B8: 1995/96 | C8: 248 | D8: 2690727 | E8: 0.355 | F8: 0.28
B9: 1996/97 | C9: 303 | D9: 3016933 | E9: 0.4 | F9: 0.308
B10: 1997/98 | C10: 365 | D10: 3412645 | E10: 0.363 | F10: 0.272
B11: 1998/99 | C11: 433 | D11: 3801388 | E11: 0.367 | F11: 0.281
B12: 1999/2000 | C12: 397 | D12: 3359497 | E12: 0.283 | F12: 0.207
B13: 2000/01 | C13: 537 | D13: 3552113 | E13: 0.284 | F13: 0.214
B14: 2001/02 | C14: 488 | D14: 3939075 | E14: 0.328 | F14: 0.237
B15: 2002/03 | C15: 513 | D15: 3277685 | E15: 0.281 | F15: 0.199
B16: 2003/04 | C16: 533 | D16: 4069000 | E16: 0.344 | F16: 0.253
B17: 2004/05 | C17: 390 | D17: 3134865 | E17: 0.251 | F17: 0.19
B18: 2005/06 | C18: 367 | D18: 3134865 | E18: 0.237 | F18: 0.182
B19: 2006/07 | C19: 357 | D19: 3049860 | E19: 0.23 | F19: 0.175
B20: 2007/08 | C20: 317 | D20: 3220245 | E20: 0.221 | F20: 0.171
B21: 2008/09 | C21: 285 | D21: 3298559 | E21: 0.23 | F21: 0.176
B22: 2009/10 | C22: 244 | D22: 3238519 | E22: 0.235 | F22: 0.176
B23: 2010/11 | C23: 222 | D23: 3057772 | E23: 0.22 | F23: 0.163
B24: 2011/12 | C24: 218 | D24: 3192530 | E24: 0.223 | F24: 0.168
B25: 2012/13 | C25: 208 | D25: 3028400 | E25: 0.206 | F25: 0.154
B26: 2013/14 | C26: 203 | D26: 3250100 | E26: 0.215 | F26: 0.161
B27: 2014/15 | C27: 196 | D27: 3556365 | E27: 0.227 | F27: 0.17
B28: 2015/16 | C28: 190 | D28: 3556914 | E28: 0.229 | F28: 0.168
B29: 2016/17 | C29: 191 | D29: 3926025 | E29: 0.244 | F29: 0.176
B30: 2017/18 | C30: 190 | D30: 3945518 | E30: 0.242 | F30: 0.172
B31: 2018/19 | C31: 207 | D31: 3870024 | E31: 0.237 | F31: 0.168
B32: 2019/20 | C32: 218 | D32: 4051529 | E32: 0.286 | F32: 0.22
B33: 2020/21 | C33: 222 | D33: 3110000 | E33: =D33/15562000 -> 0.1998457782 | F33: =D33/23556000 -> 0.1320258108
B34: 2021/22 | C34: 216 | D34: N/A | E34: N/A | F34: N/A
B35: 2022/23 | C35: 215 | D35: N/A | E35: N/A | F35: N/A
B36: Source: Department of Employment and Labour, www.labour.gov.za, accessed 23 September 2024
B37: a A trade union is a workers'/employee organisation constituted for the purpose of furthering and defending the interests of workers.
B38: b CRA calculations.
B39: c Figures from 1994 to1996 include membership of unregistered trade unions. From 1997 onwards, total trade union membership figures do not include the membership of unregistered trade unions. In terms of the Labour Relations Act of 1995, the Department of Employment and Labour is no longer required to keep records of unregistered trade unions.
B40: d Registered union membership as a proportion of the total economically active population (official definition of unemployment).
B41: N/A — Not available.

Sheet Number of unions.24
B2: Trade union groupings
B4: Number of unions in each grouping, 2024
B6: Grouping | C6: Affiliates
B7: Confederation of South African Workers’ Unions (CONSAWU) | C7: 3
B8: Congress of South African Trade Unions (COSATU) | C8: 18
B9: Federation of Unions of South Africa (FEDUSA) | C9: 20
B10: National Council of Trade Unions (NACTU) | C10: 14
B11: South African Federation of Trade Unions (SAFTU) | C11: 18
B12: Other groupings and unaffiliated unions | C12: 143
B13: Total | C13: =SUM(C7:C12) -> 216
B14: Source: Department of Employment and Labour, www.labour.gov.za, accessed 23 September 2024

Sheet Consawu affiliates by sector.24
B2: Trade union affiliates
B4: CONSAWU affiliates by sector, 2024
B6: Sector and affiliate
B7: Catering and retail
B8: National Union of Hotel, Restaurant, Catering, Commercial, Health and Allied Workers (NUHRCCHAW)
B9: Mining and construction
B10: Building, Wood and Allied Workers' Union of South Africa (BWAWUSA)
B11: Mine, Engineering and Distributor Workers' Union of South Africa (MEDWUSA)
B12: Source: Department of Employment and Labour, www.labour.gov.za, accessed 23 September 2024

Sheet Cosatu affiliates.24
B2: COSATU affiliates by sector, 2024
B4: Sector and affiliate
B5: Media and communication
B6: Communication Workers' Union (CWU)
B7: Chemical
B8: Chemical, Energy, Paper, Printing, Wood and Allied Workers' Union (CEPPWAWU)
B9: Clothing and textile
B10: Southern African Clothing and Textile Workers' Union (SACTWU)
B11: Education and health
B12: Democratic Nursing Organisation of South Africa (DENOSA)
B13: South African Medical Association (SAMA)
B14: National Education, Health and Allied Workers' Union (NEHAWU)
B15: South African Democratic Nurses' Union (SADNU)
B16: South African Democratic Teachers' Union (SADTU)
B17: Finance
B18: The Finance Union, formerly the South African Society of Bank Officials (SASBO)
B19: Catering and retail
B20: South African Commercial, Catering and Allied Workers' Union (SACCAWU)
B21: Metal
B22: Liberated Metalworkers' Union of South Africa (LIMUSA)
B23: Mining
B24: National Union of Mineworkers (NUM)
B25: Police, correctional services, defence
B26: Police and Prisons Civil Rights Union (POPCRU)
B27: Sport
B28: South African Football Players' Union (SAFPU)
B29: State and municipal
B30: Public and Allied Workers' Union of South Africa (PAWUSA)
B31: South African Municipal Workers' Union (SAMWU)
B32: South African State and Allied Workers' Union (SASAWU)
B33: Transport
B34: South African Transport and Allied Workers' Union (SATAWU)
B35: Source: Department of Employment and Labour, www.labour.gov.za, accessed 23 September 2024

Sheet Fedusa affiliates.24
A2: FEDUSA affiliates by sector, 2024
A4: Sector and affiliate
A5: Media and communication
A6: South African Communications Union (SACU)
A7: Education and training
A8: National Professional Teachers’ Organisation of South Africa (NAPTOSA)
A9: National Tertiary Education Union (NTEU)
A10: Professional Educators' Union (PEU)
A11: South African Parastatal and Tertiary Institutions Union (SAPTU)
A12: Suid-Afrikaanse Onderwysers Unie (SAOU)
A13: Tertiary Education National Union of South Africa (TENUSA)
A14: Health, hospitality and education
A15: Health and Other Services Personnel Trade Union of South Africa (HOSPERSA)
A16: Hospitality Industries and Allied Workers' Union (HIAWU)
A17: Finance
A18: Insurance and Banking Staff Association (IBSA)
A19: Police, correctional services, defence
A20: National Security and Unqualified Workers' Union (NASUWU)
A21: State
A22: National Union of Civil and Allied Workers (NUCAAW)
A23: Public Servants' Association of South Africa (PSA)
A24: United National Public Service Association of South Africa and Allied Workers' Union (UNIPSAWU)
A25: Transport, mining, engineering
A26: Aviation Professionals Association — South Africa (AVPA-SA)
A27: Motor Industry Staff Association (MISA)
A28: Motor Transport Workers' Union of South Africa (MTWU)
A29: United National Transport Union (UNTU)
A30: Other
A31: UASA — The Union (formerly United Association of South Africa) — All sectors
A32: National Union of Leather and Allied Workers (NULAW)
A33: Source: Department of Employment and Labour, www.labour.gov.za, accessed 23 September 2024

Sheet Nactu affiliates.24
A2: NACTU affiliates by sector, 2024
A4: Sector and affiliate
A5: Catering
A6: Hotel, Liquor, Catering, Commercial and Allied Workers' Union of South Africa (HOTELICCA)
A7: Chemical
A8: South African Chemical Workers' Union (SACWU)
A9: Finance
A10: Banking, Insurance, Finance and Allied Workers' Union (BIFAWU)
A11: Food and beverages
A12: National Union of Food, Beverages, Wine, Spirits and Allied Workers (NUFWBSAW)
A13: General
A14: Labour Equity General Workers' Union of South Africa (LEWUSA)
A15: Metal
A16: Metal and Electrical Workers' Union of South Africa (MEWUSA)
A17: Mining and construction
A18: Association of Mineworkers and Construction Union (AMCU)
A19: Building, Construction and Allied Workers' Union (BCAWU)
A20: Security
A21: National Security Commercial and General Workers' Union (NASECGWU)
A22: South African Private Security Workers' Union (SAPSWU)
A23: State
A24: National Public Service Workers' Union (NPSWU)
A25: Trade
A26: Federal Council of Retail and Allied Workers (FEDCRAW)
A27: Transport
A28: Transport and Omnibus Workers' Union (TOWU)
A29: Other
A30: Inqubelaphambili Trade Union (ITU) — All sectors
A31: Source: Department of Employment and Labour, www.labour.gov.za, accessed 23 September 2024

Sheet Saftu affiliates.24
A2: SAFTU affiliates by sector, 2024
A4: Sector and affiliate
A5: Media and communication
A6: Democratic Postal and Communications Union (DEPACU)
A7: Information Communication Technology Union (ICTU)
A8: Chemical
A9: Chemical, Wood and Allied Workers' Union (CWAWU)
A10: Education
A11: College Workers' Union of South Africa (COWUSA)
A12: Food and beverages
A13: Food and Allied Workers' Union (FAWU)
A14: Medical
A15: Young Nurses Indaba Trade Union (YNITU)
A16: Metal
A17: National Union of Metalworkers of South Africa (NUMSA)
A18: Security
A19: South African Policing Union (SAPU)
A20: State and municipal
A21: Democratic Municipal and Allied Workers' Union of South Africa (DEMAWUSA)
A22: National Union of Public Service and Allied Workers (NUPSAW)
A23: Municipal and Allied Trade Union of South Africa (MATUSA)
A24: Transport
A25: Democratised Transport Logistics and Allied Workers' Union (DETAWU)
A26: National Transport Movement (NTM)
A27: Tirisano Transport and Services Workers' Union (TASWU)
A28: Transport Retail and General Workers' Union (THORN)
A29: Other
A30: Commercial, Stevedoring, Agricultural and Allied Workers' Union (CSAAWU)
A31: General Industries Workers’ Union of South Africa (GIWUSA)
A32: South African Industrial Commercial and Allied Workers Union (SAICWU)
A33: Source: Department of Employment and Labour, www.labour.gov.za, accessed 23 September 2024; SAFTU, www.saftu.org.za, accessed 23 September 2024

Sheet Employer organisations

Sheet Employer orgs.95-2023
C2: Employer organisations
C4: Employer organisationsa and membership, 1995/96-2023/24
C6: Year | D6: Number | E6: Registered members
C7: 1995/96 | D7: 188 | E7: N/A
C8: 1996/97 | D8: 189 | E8: N/A
C9: 1997/98 | D9: 191 | E9: N/A
C10: 1998/99 | D10: 237 | E10: N/A
C11: 1999/2000 | D11: 243 | E11: N/A
C12: 2000/01 | D12: 269 | E12: 47069
C13: 2001/02 | D13: 248 | E13: 39717
C14: 2002/03 | D14: 262 | E14: 45960
C15: 2003/04 | D15: 266 | E15: 41804
C16: 2004/05 | D16: 234 | E16: 43482
C17: 2005/06 | D17: 228 | E17: 39288
C18: 2006/07 | D18: 223 | E18: 50782
C19: 2007/08 | D19: 210 | E19: 57865
C20: 2008/09 | D20: 196 | E20: 48988
C21: 2009/10 | D21: 183 | E21: 43073
C22: 2010/11 | D22: 165 | E22: 53250
C23: 2011/12 | D23: 167 | E23: 55898
C24: 2012/13 | D24: 163 | E24: 56251
C25: 2013/14 | D25: 159 | E25: 55979
C26: 2014/15 | D26: 156 | E26: 71281
C27: 2015/16 | D27: 154 | E27: 86087
C28: 2016/17 | D28: 155 | E28: 64836
C29: 2017/18 | D29: 153 | E29: 81309
C30: 2018/19 | D30: 151 | E30: N/A
C31: 2019/20 | D31: 150 | E31: 88087
C32: 2020/21 | D32: 146 | E32: 95576
C33: 2021/22 | D33: N/A | E33: N/A
C34: 2022/23 | D34: 148 | E34: 70186
C35: 2023/24 | D35: 145 | E35: N/A
C36: Source: Department of Employment and Labour, email communication, 23 September 2024
B37: a An employer organisation is a collective of employers seeking to co-ordinate member companies during negotiations with trade unions or government bodies — it is necessary for effective collective bargaining and is an important way of regulating industrial relations and determining employee wages and benefits.
B38: N/A — Not available.

Sheet EMPLOYEE WELFARE

Sheet Salaries

Sheet Salary negotiations.2016-24
A2: EMPLOYEE WELFARE
A4: Salaries and wages
A6: Annual salary negotiations by type, 2016-24
A8: Type of negotiation | B8: 2016 | C8: 2018 | D8: 2020 | E8: 2022 | F8: 2023 | G8: 2024
A9: Individual and employer | B9: 0.085 | C9: 0.079 | D9: 0.103 | E9: =1116/13040 -> 0.08558282209 | F9: =980/13656 -> 0.07176332748 | G9: =1075/13919 -> 0.07723255981
A10: Union and employer | B10: 0.223 | C10: 0.227 | D10: 0.277 | E10: =2942/13040 -> 0.2256134969 | F10: =2887/13656 -> 0.2114089045 | G10: =2752/13919 -> 0.1977153531
A11: Bargaining council | B11: 0.08 | C11: 0.081 | D11: 0.086 | E11: =1198/13040 -> 0.09187116564 | F11: =1360/13656 -> 0.09958992384 | G11: =1393/13919 -> 0.1000790287
A12: Employer only | B12: 0.557 | C12: 0.546 | D12: 0.487 | E12: =7090/13040 -> 0.5437116564 | F12: =7684/13656 -> 0.5626830697 | G12: =7832/13919 -> 0.5626841009
A13: No regular increment | B13: 0.052 | C13: 0.062 | D13: 0.043 | E13: 0.051 | F13: =668/13656 -> 0.0489162273 | G13: =805/13919 -> 0.05783461456
A14: Other | B14: 0.004 | C14: 0.005 | D14: 0.004 | E14: =25/13040 -> 0.001917177914 | F14: =77/13656 -> 0.005638547159 | G14: =62/13919 -> 0.004454342984
A15: Totala | B15: 1 | C15: 1 | D15: =SUM(D9:D14) -> 1 | E15: 1 | F15: =SUM(F9:F14) -> 1 | G15: =SUM(G9:G14) -> 1
A16: Source: Stats SA, Quarterly Labour Force Surveys, Quarter 2: 2016-21, Statistical release P0211; QLFS Quarter 2: 2022, Statistical release P0211, p73; QLFS Quarter 2: 2023, Statistical release P0211, p72; QLFS Quarter 2: 2023, Statistical release P0211, p72; QLFS Quarter 2: 2024, Statistical release P0211, p71
A17: a Proportions should add up vertically but may not, owing to rounding. | N17: 2023 | O17: 2024
M18: Individual and employer | N18: =980/13656 -> 0.07176332748 | O18: =1075/13919 -> 0.07723255981
M19: Union and employer | N19: =2887/13656 -> 0.2114089045 | O19: =2752/13919 -> 0.1977153531
M20: Bargaining council | N20: =1360/13656 -> 0.09958992384 | O20: =1393/13919 -> 0.1000790287
A21: Type of negotiation | B21: 2022 | M21: Employer only | N21: =7684/13656 -> 0.5626830697 | O21: =7832/13919 -> 0.5626841009
A22: Individual and employer | B22: =1116/13040 -> 0.08558282209 | M22: No regular increment | N22: =668/13656 -> 0.0489162273 | O22: =805/13919 -> 0.05783461456
A23: Union and employer | B23: =2942/13040 -> 0.2256134969 | M23: Other | N23: =77/13656 -> 0.005638547159 | O23: =62/13919 -> 0.004454342984
A24: Bargaining council | B24: =1198/13040 -> 0.09187116564
A25: Employer only | B25: =7090/13040 -> 0.5437116564
A26: No regular increment | B26: 0.051
A27: Other | B27: =25/13040 -> 0.001917177914
A28: Totala | B28: 1

Sheet Wage settlements

Sheet Wage settlement&inflation.98-23
B2: Wage settlements
B4: Wage settlementsa and inflation, 1998-2023
B6: Year | C6: Average level of wage settlements | D6: Inflation rate (CPI)b | E6: Difference in percentage pointsc | Y6: Average level of wage settlements | Z6: Inflation rate (CPI)
B7: 1998 | C7: 0.086 | D7: 0.069 | E7: 1.7 | X7: 1998 | Y7: 0.086 | Z7: 0.069
B8: 1999 | C8: 0.083 | D8: 0.051 | E8: 3.2 | X8: 1999 | Y8: 0.083 | Z8: 0.051
B9: 2000 | C9: 0.074 | D9: 0.053 | E9: 2.1 | X9: 2000 | Y9: 0.074 | Z9: 0.053
B10: 2001 | C10: 0.074 | D10: 0.057 | E10: 1.7 | X10: 2001 | Y10: 0.074 | Z10: 0.057
B11: 2002 | C11: 0.08 | D11: 0.092 | E11: -1.2 | X11: 2002 | Y11: 0.08 | Z11: 0.092
B12: 2003 | C12: 0.089 | D12: 0.058 | E12: 3.1 | X12: 2003 | Y12: 0.089 | Z12: 0.058
B13: 2004 | C13: 0.068 | D13: 0.014 | E13: 5.4 | X13: 2004 | Y13: 0.068 | Z13: 0.014
B14: 2005 | C14: 0.063 | D14: 0.034 | E14: 2.9 | X14: 2005 | Y14: 0.063 | Z14: 0.034
B15: 2006 | C15: 0.065 | D15: 0.047 | E15: 1.8 | X15: 2006 | Y15: 0.065 | Z15: 0.047
B16: 2007 | C16: 0.073 | D16: 0.071 | E16: 0.2 | X16: 2007 | Y16: 0.073 | Z16: 0.071
B17: 2008 | C17: 0.098 | D17: 0.115 | E17: -1.7 | X17: 2008 | Y17: 0.098 | Z17: 0.115
B18: 2009 | C18: 0.093 | D18: 0.071 | E18: 2.2 | X18: 2009 | Y18: 0.093 | Z18: 0.071
B19: 2010 | C19: 0.082 | D19: 0.043 | E19: 3.9 | X19: 2010 | Y19: 0.082 | Z19: 0.043
B20: 2011 | C20: 0.077 | D20: 0.05 | E20: 2.7 | X20: 2011 | Y20: 0.077 | Z20: 0.05
B21: 2012 | C21: 0.076 | D21: 0.06 | E21: 1.6 | X21: 2012 | Y21: 0.076 | Z21: 0.06
B22: 2013 | C22: 0.079 | D22: 0.059 | E22: 2 | X22: 2013 | Y22: 0.079 | Z22: 0.059
B23: 2014 | C23: 0.081 | D23: 0.061 | E23: 2 | X23: 2014 | Y23: 0.081 | Z23: 0.061
B24: 2015 | C24: 0.077 | D24: 0.045 | E24: 3.1 | X24: 2015 | Y24: 0.077 | Z24: 0.045
B25: 2016 | C25: 0.075 | D25: 0.064 | E25: 1.1 | X25: 2016 | Y25: 0.075 | Z25: 0.064
B26: 2017 | C26: 0.076 | D26: 0.053 | E26: 2.3 | X26: 2017 | Y26: 0.076 | Z26: 0.053
B27: 2018 | C27: 0.072 | D27: 0.046 | E27: 2.6 | X27: 2018 | Y27: 0.072 | Z27: 0.046
B28: 2019 | C28: 0.067 | D28: 0.041 | E28: 2.6 | X28: 2019 | Y28: 0.067 | Z28: 0.041
B29: 2020 | C29: 0.063 | D29: 0.033 | E29: 3 | X29: 2020 | Y29: 0.063 | Z29: 0.033
B30: 2021 | C30: 0.044 | D30: 0.045 | E30: -0.1 | X30: 2021 | Y30: 0.044 | Z30: 0.045
B31: 2022 | C31: 0.06 | D31: 0.069 | E31: =-0.9 -> -0.9 | X31: 2022 | Y31: 0.06 | Z31: 0.069
B32: 2023 | C32: 0.063 | D32: 0.06 | E32: 0.3 | X32: 2023 | Y32: 0.063 | Z32: 0.06
B33: Source: Andrew Levy Employment Publications, The Wage Settlement Survey Quarterly Report, December 2023, p6, accessed 6 May 2024
B34: a A wage settlement is an agreement over wages, following negotiations between employers and employees. So, the proportions in the first column indicate the average wage increments for each year as agreed upon during employer/employee negotiations.
B35: b Consumer Price Index.
B36: c Average level of wage settlements minus the inflation rate.

Sheet Employee benefits.

Sheet Bargaining& statutory councils

Sheet Employees benefits.access 16-24
A2: Employee benefits
A4: Employee access to benefitsa, 2016-24
A6: Benefit | B6: 2016 | C6: 2018 | D6: 2020 | E6: 2022 | F6: 2023 | G6: 2024
A7: Paid annual leaveb | B7: 0.657 | C7: 0.66 | D7: 0.7203924915 | E7: =8440/13040 -> 0.6472392638 | F7: =9007/13656 -> 0.6595635618 | G7: =9358/13919 -> 0.6723184137
A8: Paid sick leavec | B8: 0.702 | C8: 0.702 | D8: 0.7738054608 | E8: =9221/13040 -> 0.7071319018 | F8: =9838/13656 -> 0.7204159344 | G8: =10075/13919 -> 0.723830735
A9: Maternity/paternity leaved | B9: 0.56 | C9: 0.568 | D9: 0.8422354949 | E9: =6829/13040 -> 0.523696319 | F9: =7441/13656 -> 0.5448886936 | G9: =7718/13919 -> 0.5544938573
A10: Unemployment Insurance Funde | B10: 0.606 | C10: 0.603 | D10: 0.641552901 | E10: =7894/13040 -> 0.6053680982 | F10: =8534/13656 -> 0.6249267721 | G10: =8549/13919 -> 0.6141964222
A11: Medical aid | B11: 0.298 | C11: 0.297 | D11: 0.345221843 | E11: =3837/13040 -> 0.2942484663 | F11: =4027/13656 -> 0.2948886936 | G11: =4268/13919 -> 0.3066312235
A12: Pension/retirement fund contribution | B12: 0.465 | C12: 0.481 | D12: 0.5400170648 | E12: =5852/13040 -> 0.4487730061 | F12: =6039/13656 -> 0.4422231986 | G12: =6277/13919 -> 0.4509663051
A13: Source: Stats SA, QLFS Quarter 2, 2019, Statistical release P0211, 30 July 2019, pp65–67; QLFS Quarter 2, 2021, Statistical release P0211, 24 August 2021, pp73–75; QLFS Quarter 2, 2022, Statistical release P0211, 23 August 2022, pp68–70; QLFS Quarter 2: 2023, Statistical release P0211, 15 August 2023, pp68–70; QLFS Quarter 2: 2024, Statistical release P0211, pp66–68, 21 September 2024 | L13: 2016 | M13: 2023
A14: a CRA calculations. For example, in 2016, 65.7% of employees had access to paid annual leave. | K14: Paid annual leave | L14: 0.657 | M14: 0.672
A15: b The employer must grant an employee at least 21 consecutive days' annual leave on full remuneration in each leave cycle. This translates into 15 working days. | K15: Paid sick leave | L15: 0.702 | M15: 0.724
K16: Maternity/paternity leave | L16: 0.56 | M16: 0.554
K17: Maternity/Paternity leave | L17: 0.539
A18: c An employee may take the number of days they would normally work in a six-week period for sick leave on full pay in a three-year period. Employers may require proof of illness before paying the employee. | K18: UIF | L18: 0.606 | M18: 0.614
K19: Medical aid | L19: 0.298 | M19: 0.307
K20: Pension/Retirement fund contribution | L20: 0.298 | M20: =4027/13656 -> 0.2948886936
K21: Pension/retirement fund contribution | L21: 0.465 | M21: 0.451
A22: d An employee is entitled to at least four consecutive months of unpaid leave. Unemployment benefits may be claimed from the Unemployment Insurance Fund (UIF) during this time.
A26: e An employer must pay the 1% they deducted from workers, together with 1% from themselves, to the UIF or the South African Revenue Service (SARS) before the 7th of every month.

Sheet Bargaining council.96-24
B2: Bargaining and statutory councils
C4: Bargaining councilsa, 1996-2024
D6: Year | E6: Number | AC6: Bargaining councils, 1996-2021
D7: 1996 | E7: 77 | AC7: 1996 | AD7: 77
D8: 1997 | E8: 75 | AC8: 1997 | AD8: 75
D9: 1998 | E9: 76 | AC9: 1998 | AD9: 76
D10: 1999b | E10: 78 | AC10: 1999 | AD10: 78
D11: 2000 | E11: 73 | AC11: 2000 | AD11: 73
D12: 2001 | E12: 73 | AC12: 2001 | AD12: 73
D13: 2002 | E13: 62 | AC13: 2002 | AD13: 62
D14: 2003 | E14: 56 | AC14: 2003 | AD14: 56
D15: 2004 | E15: 58 | AC15: 2004 | AD15: 58
D16: 2005 | E16: 58 | AC16: 2005 | AD16: 58
D17: 2006 | E17: 53 | AC17: 2006 | AD17: 53
D18: 2007 | E18: 52 | AC18: 2007 | AD18: 52
D19: 2008 | E19: 51 | AC19: 2008 | AD19: 51
D20: 2009 | E20: 47 | AC20: 2009 | AD20: 47
D21: 2010 | E21: 47 | AC21: 2010 | AD21: 47
D22: 2011 | E22: 47 | AC22: 2011 | AD22: 47
D23: 2012 | E23: 46 | AC23: 2012 | AD23: 46
D24: 2013 | E24: 48 | AC24: 2013 | AD24: 48
D25: 2014 | E25: 48 | AC25: 2014 | AD25: 48
D26: 2015 | E26: 47 | AC26: 2015 | AD26: 47
D27: 2016 | E27: 47 | AC27: 2016 | AD27: 47
D28: 2017 | E28: 47 | AC28: 2017 | AD28: 47
D29: 2018 | E29: 39 | AC29: 2018 | AD29: 39
D30: 2019 | E30: 39 | AC30: 2019 | AD30: 39
D31: 2020 | E31: 48 | AC31: 2020 | AD31: 48
D32: 2021 | E32: 40 | AC32: 2021 | AD32: 40
D33: 2022 | E33: 48 | AC33: 2022 | AD33: 48
D34: 2023 | E34: 40 | AC34: 2023 | AD34: 40
D35: 2024 | E35: 39 | AC35: 2024 | AD35: 39
D36: 1996-2024 | E36: =(E35-E7)/E7 -> -0.4935064935
C37: Source: Department of Employment and Labour, www.labour.gov.za, accessed 21 September 2024
B38: a A bargaining council is a body formed by (a) trade union(s) and employer organisation(s) as stipulated by the Labour Relations Act of 1995. It deals with collective agreements, solves labour disputes, establishes various schemes and makes proposals on labour policies and laws. It can only be established in an area or sector of industry where no other bargaining or statutory council exists.
B39: b Includes registered private sector, local government and government, and statutory bargaining councils.

Sheet Priv sect bargain councils.24
B2: Private sector bargaining councils, 2024
B4: Industry/sector | C4: Numbera
B5: Building | C5: 7
B6: Canvas goods | C6: 1
B7: Chemical | C7: 1
B8: Civil engineering | C8: 1
B9: Clothing | C9: 1
B10: Contract cleaning | C10: 1
B11: Diamond cutting | C11: 1
B12: Electrical | C12: 1
B13: Fishing | C13: 1
B14: Food, restaurant, catering and allied trades | C14: 3
B15: Furniture manufacturing | C15: 5
B16: Grain industry | C16: 1
B17: Hairdressing, cosmetology, beauty and skincare industry | C17: 1
B18: Laundry, cleaning and dyeing | C18: 1
B19: Leather | C19: 1
B20: Meat | C20: 1
B21: Metal and engineering | C21: 1
B22: Motor | C22: 1
B23: Motor ferry | C23: 1
B24: New tyre | C24: 1
B25: Private security | C25: 1
B26: Road freight and logistics | C26: 1
B27: Road passenger industry | C27: 1
B28: Sugar manufacturing | C28: 1
B29: Textile | C29: 1
B30: Transnet (rail, ports, logistics, pipelines) | C30: 1
B31: Wood and paper | C31: 1
B32: National Councilsb | C32: 21
B33: Provincial Councilsc | C33: 5
B34: City and Townd | C34: 13
B35: Total | C35: =SUM(C32:C34) -> 39
B36: Source: Department of Employment and Labour, www.labour.gov.za, accessed 21 September 2024
B37: a As at March 2024.
B38: b Bargaining councils with national coverage.
B39: c Bargaining councils whose coverage is limited to specific provinces.
B40: d Bargaining councils whose coverage is limited to specific cities or towns.

Sheet Local gvt bargainin councils.24
B2: Local government bargaining councilsa, 2024
B4: Education Labour Relations Council
B5: General Public Service Sectoral Bargaining Council
B6: Public Health and Social Development Sectoral Bargaining Council
B7: Public Service Co-ordinating Bargaining Council
B8: Safety and Security Sectoral Bargaining Council
B9: South African Local Government Bargaining Council
B10: Source: Department of Employment and Labour, www.labour.gov.za, accessed 21 September 2024
B11: a As at August 2024.

Sheet Statutory Councils 2024
B2: Statutory councilsa, 2024
B4: Statutory Council of the Printing, Newspaper and Packaging Industry of South Africa
B5: Statutory Council for the Squid and Related Fisheries of South Africa
B6: Source: Department of Employment and Labour, www.labour.gov.za, accessed 21 September 2024
B7: a As at August 2024. A statutory council is a body formed by (a) trade union(s) and employer organisation(s) as stipulated by the Labour Relations Act of 1995. It manages labour disputes, schemes and funds, education and training and makes collective agreements. It can only be established in an area or sector of industry where no other bargaining or statutory council exists. While parties to a statutory council can draw up agreements on wages and working conditions, these agreements cannot be extended to employers and employees outside the council. This can be done only by the minister. A statutory council may resolve to apply to register as a bargaining council.

Sheet Strikes

Sheet Protect&unprotect.strikes.14-23
C2: Strikes
B4: Protecteda and unprotected strikes, 2015-23
C6: Strike status | D6: 2015 | E6: 2016 | F6: 2017 | G6: 2018 | H6: 2019 | I6: 2020 | J6: 2021 | K6: 2022 | L6: 2023
C7: Protected | D7: 0.55 | E7: 0.59 | F7: 0.48 | G7: 0.59 | H7: 0.65 | I7: 0.25 | J7: 0.39 | K7: 0.38 | L7: 0.42
C8: Unprotected | D8: 0.45 | E8: 0.41 | F8: 0.52 | G8: 0.41 | H8: 0.35 | I8: 0.66 | J8: 0.61 | K8: 0.53 | L8: 0.52
C9: Don't know | D9: — | E9: — | F9: — | G9: — | H9: — | I9: 0.09 | J9: — | K9: 0.09 | L9: 0.06
B10: Source: Department of Employment and Labour, Annual Industrial Action Report 2023, p25; Socio-Economic Survey of South Africa 2024, p299
B11: a A protected strike is one that complies with the requirements of the Labour Relations Act of 1995, in which case the strike is legitimate and procedural requirements are complied with before it commences.

Sheet Top five strikes.duration.23
B2: Top five strikes by duration, 2023
C4: Month | D4: Trade union | E4: Company affected | F4: Duration (days) | G4: Strike trigger
C5: July | D5: South African Municipal Workers' Union (SAMWU) | E5: Tshwane Metro | F5: 73 | G5: Wages
C6: July | D6: National Union of Metal Workers of South Africa (NUMSA) | E6: Wesizwe Platinum | F6: 25 | G6: Retrenchment
C7: July | D7: National Union of Metal Workers of South Africa (NUMSA) | E7: Hulamin | F7: 10 | G7: Wages
C8: March | D8: Public Servants Association of SA (PSA), National Education, Health and Allied Workers' Union (NEHAWU) and Others | E8: DPSA | F8: 8 | G8: Wages
C9: June | D9: National Union of Metal Workers of South Africa (NUMSA) | E9: Sumitomo Rubber | F9: 7 | G9: Grievance
B10: Source: Andrew Levy Employment Publications, Wage Settlement Survey Quarterly Report, December 2023, p9
B11: NA — Not available.

Sheet Top fiv strikes.workdayslost.23
B2: Working days lost in the top five strikes, 2023
C4: Month | D4: Trade union | E4: Company affected | F4: Working days lost | G4: Stike trigger
C5: March | D5: Public Servants Association of SA (PSA), National Education, Health and Allied Workers' Union (NEHAWU) and Others | E5: DPSA | F5: 4600000 | G5: Wages
C6: July | D6: South African Municipal Workers' Union (SAMWU) | E6: Tshwane Metro | F6: 219000 | G6: Wages
C7: July | D7: National Union of Metal Workers of South Africa (NUMSA) | E7: Wesizwe Platinum | F7: 12500 | G7: Retrenchment
C8: July | D8: National Union of Metal Workers of South Africa (NUMSA) | E8: Hulamin | F8: 10000 | G8: Wages
C9: June | D9: National Union of Metal Workers of South Africa (NUMSA) | E9: Sumitomo Rubber | F9: 6300 | G9: Grievance
B10: Source: Andrew Levy Employment Publications, Wage Settlement Survey Quarterly Report, December 2023, p9
B11: a Or mandays. A manday is an industrial unit of production equal to the work one person can produce in a day. Typically 1 manday = 8 man hours = 40 hours per week.

Sheet Strike.workdayslost.79-23
B2: Working daysa lost to strikes, 1979-2023
C4: Year | D4: Number | E4: Year | F4: Number | Z4: Number
C5: 1979 | D5: 100000 | E5: 2002 | F5: 945000 | Y5: 1979 | Z5: 100000
C6: 1980 | D6: 250000 | E6: 2003 | F6: 700000 | Y6: 1980 | Z6: 250000
C7: 1981 | D7: 500000 | E7: 2004 | F7: 1100000 | Y7: 1981 | Z7: 500000
C8: 1982 | D8: 150000 | E8: 2005 | F8: 2300000 | Y8: 1982 | Z8: 150000
C9: 1983 | D9: 250000 | E9: 2006 | F9: 2900000 | Y9: 1983 | Z9: 250000
C10: 1984 | D10: 950000 | E10: 2007 | F10: 12 900 000c | Y10: 1984 | Z10: 950000
C11: 1985 | D11: 1250000 | E11: 2008 | F11: 990000 | Y11: 1985 | Z11: 1250000
C12: 1986 | D12: 1350000 | E12: 2009 | F12: 2900000 | Y12: 1986 | Z12: 1350000
C13: 1987 | D13: 9 000 000b | E13: 2010 | F13: 14 600 000d | Y13: 1987 | Z13: 9000000
C14: 1988 | D14: 1500000 | E14: 2011 | F14: 6200000 | Y14: 1988 | Z14: 1500000
C15: 1989 | D15: 3090000 | E15: 2012 | F15: 3 500 000e | Y15: 1989 | Z15: 3090000
C16: 1990 | D16: 4000000 | E16: 2013 | F16: 5200000 | Y16: 1990 | Z16: 4000000
C17: 1991 | D17: 3800000 | E17: 2014 | F17: 11 800 000f | Y17: 1991 | Z17: 3800000
C18: 1992 | D18: 4200000 | E18: 2015 | F18: 640000 | Y18: 1992 | Z18: 4200000
C19: 1993 | D19: 3600000 | E19: 2016 | F19: 550000 | Y19: 1993 | Z19: 3600000
C20: 1994 | D20: 3900000 | E20: 2017 | F20: 480000 | Y20: 1994 | Z20: 3900000
C21: 1995 | D21: 1600000 | E21: 2018 | F21: 1950000 | Y21: 1995 | Z21: 1600000
C22: 1996 | D22: 1700000 | E22: 2019 | F22: 1200000 | Y22: 1996 | Z22: 1700000
C23: 1997 | D23: 650000 | E23: 2020 | F23: 50000 | Y23: 1997 | Z23: 650000
C24: 1998 | D24: 2300000 | E24: 2021 | F24: 1500000 | Y24: 1998 | Z24: 2300000
C25: 1999 | D25: 3100000 | E25: 2022 | F25: 2400000 | Y25: 1999 | Z25: 3100000
C26: 2000 | D26: 500000 | E26: 2023 | F26: 4900000 | Y26: 2000 | Z26: 500000
C27: 2001 | D27: 1250000
B28: Source: Andrew Levy Employment Publications, The Wage Settlement Survey Quarterly Report, December 2023, p8 | Y28: 2001 | Z28: 1250000
B29: a Or mandays. A manday is an industrial unit of production equal to the work one person can produce in a day. Typically 1 manday = 8 man hours = 40 hours per week. | Y29: 2002 | Z29: 945000
B30: b This high level of industrial action was the result of two large strikes in the mining and transport sectors. | Y30: 2003 | Z30: 700000
B31: c This high level of industrial action was the result of a major public service strike. | Y31: 2004 | Z31: 1100000
B32: d This was the highest level of industrial action post-1994 and was largely the result of a public sector strike in September 2010, which alone accounted for the loss of 12 million working days/mandays. | Y32: 2005 | Z32: 2300000
B33: e This figure does not reflect the true impact in terms of the nature of strikes. The year’s activity was dominated by the wave of violent unrest in the mining sector set off by events at Marikana (North West) in August 2012. | Y33: 2006 | Z33: 2900000
B34: f This high level of industrial action was the result of a major strike in the mining sector. | Y34: 2007 | Z34: 12900000
Y35: 2008 | Z35: 990000
Y36: 2009 | Z36: 2900000
Y37: 2010 | Z37: 14600000
Y38: 2011 | Z38: 6200000
Y39: 2012 | Z39: 3500000
Y40: 2013 | Z40: 5200000
Y41: 2014 | Z41: 11800000
Y42: 2015 | Z42: 640000
Y43: 2016 | Z43: 550000
Y44: 2017 | Z44: 480000
Y45: 2018 | Z45: 1950000
Y46: 2019 | Z46: 1200000
Y47: 2020 | Z47: 50000
Y48: 2021 | Z48: 1500000
Y49: 2022 | Z49: 2400000
Y50: 2023 | Z50: 4900000

Sheet Strike triggers.87-23
A2: Working daysa lost by strike triggerb, 1987-2023
A4: Year | B4: Wages | C4: Recognition/ retrenchment | D4: Other grievancesc | E4: Dismissal/ disciplined | F4: Otherc | G4: Totale
A5: 1987 | B5: 0.337 | C5: 0.386 | D5: 0.072 | E5: 0.205 | F5: –f | G5: 1
A6: 1988 | B6: 0.404 | C6: 0.216 | D6: 0.056 | E6: 0.168 | F6: 0.156 | G6: 1
A7: 1989 | B7: 0.769 | C7: 0.05 | D7: 0.023 | E7: 0.035 | F7: 0.123 | G7: 1
A8: 1990 | B8: 0.663 | C8: 0.028 | D8: 0.118 | E8: 0.039 | F8: 0.152 | G8: 1
A9: 1991 | B9: 0.68 | C9: 0.06 | D9: 0.16 | E9: 0.08 | F9: 0.02 | G9: 1
A10: 1992 | B10: 0.782 | C10: 0.024 | D10: 0.141 | E10: 0.049 | F10: 0.004 | G10: 1
A11: 1993 | B11: 0.688 | C11: 0.131 | D11: 0.164 | E11: 0.017 | F11: –f | G11: 1
A12: 1994 | B12: 0.653 | C12: 0.03 | D12: 0.198 | E12: 0.106 | F12: 0.013 | G12: 1
A13: 1995 | B13: 0.87 | C13: 0.02 | D13: 0.11 | E13: 0.01 | F13: –f | G13: 1
A14: 1996 | B14: 0.574 | C14: 0.03 | D14: 0.37 | E14: 0.026 | F14: –f | G14: 1
A15: 1997 | B15: 0.701 | C15: 0.18 | D15: 0.082 | E15: 0.037 | F15: –f | G15: 1
A16: 1998 | B16: 0.968 | C16: 0.008 | D16: 0.012 | E16: 0.011 | F16: –f | G16: 1
A17: 1999 | B17: 0.973 | C17: 0.019 | D17: 0.002 | E17: 0.006 | F17: 0.008 | G17: 1
A18: 2000 | B18: 0.752 | C18: 0.006 | D18: 0.205 | E18: 0.037 | F18: –f | G18: 1
A19: 2001 | B19: 0.972 | C19: 0.005 | D19: 0.023 | E19: –f | F19: –f | G19: 1
A20: 2002 | B20: 0.941 | C20: –f | D20: 0.057 | E20: 0.002 | F20: –f | G20: 1
A21: 2003 | B21: 0.764 | C21: –f | D21: 0.235 | E21: –f | F21: –f | G21: 1
A22: 2004 | B22: 0.976 | C22: –f | D22: 0.021 | E22: 0.003 | F22: –f | G22: 1
A23: 2005 | B23: 0.708 | C23: 0.167 | D23: 0.125 | E23: –f | F23: –f | G23: 1
A24: 2006 | B24: 0.926 | C24: 0.072 | D24: 0.001 | E24: –f | F24: –f | G24: 1
A25: 2007 | B25: 0.968 | C25: 0.003 | D25: 0.028 | E25: –f | F25: –f | G25: 1
A26: 2008 | B26: 0.382 | C26: 0.44 | D26: 0.172 | E26: –f | F26: 0.006 | G26: 1
A27: 2009 | B27: 0.985 | C27: –f | D27: 0.009 | E27: 0.005 | F27: 0.001 | G27: 1
A28: 2010 | B28: 0.993 | C28: 0.003 | D28: 0.003 | E28: –f | F28: –f | G28: 1
A29: 2011 | B29: 0.976 | C29: –f | D29: 0.023 | E29: –f | F29: –f | G29: 1
A30: 2012 | B30: 0.96 | C30: –f | D30: 0.04 | E30: –f | F30: –f | G30: 1
A31: 2013 | B31: 0.956 | C31: 0.011 | D31: 0.029 | E31: 0.003 | F31: 0.001 | G31: 1
A32: 2014 | B32: 0.685 | C32: 0.053 | D32: 0.21 | E32: 0.052 | F32: –f | G32: 1
A33: 2015 | B33: 0.81 | C33: 0.065 | D33: 0.12 | E33: 0.005 | F33: –f | G33: 1
A34: 2016 | B34: 0.86 | C34: 0.009 | D34: 0.11 | E34: 0.021 | F34: –f | G34: 1
A35: 2017 | B35: 0.78 | C35: 0.007 | D35: 0.14 | E35: 0.073 | F35: –f | G35: 1
A36: 2018 | B36: 0.92 | C36: 0.025 | D36: 0.055 | E36: –f | F36: –f | G36: 1
A37: 2019 | B37: 0.92 | C37: –f | D37: 0.08 | E37: –f | F37: –f | G37: 1
A38: 2021 | B38: 0.99 | C38: 0.003 | D38: 0.006 | E38: –f | F38: –f | G38: 1
A39: 2022 | B39: 0.99 | C39: –f | D39: 0.01 | E39: –f | F39: –f | G39: 1
A40: 2023 | B40: 0.99 | C40: –f | D40: 0.01 | E40: –f | F40: –f | G40: 1
A41: Source: Andrew Levy Employment Publications, Wage Settlement Survey Quarterly Report, December 2023, p9
A42: a Or mandays. A manday is an industrial unit of production equal to the work one person can produce in a day. Typically 1 manday = 8 man hours = 40 hours per week.
A43: b For example, in 2016, 86% of working days were lost to strikes stemming from disputes over wages.
A44: c For example, grievances about conditions of employment or discrimination.
A45: d Includes sympathy strikes i.e. strikes in which the strikers have no direct grievance against their own employer but attempt to support or aid another group of workers on strike.
A46: e Figures should add up horizontally to 100% but may not, owing to rounding.
A47: f No strike triggers fell into this category.

Sheet Working days lost by union.23
C2: Working daysa lost to strikes by trade union, 2023
D4: Trade union | E4: Proportion of total
D5: Public Servants Association of South Africa (PSA), National Education, Health and Allied Workers' Union (NEHAWU) and Others | E5: 0.9489
D6: South African Municipal Workers' Union (SAMWU) | E6: 0.0452
D7: National Union of Metalworkers of South Africa (NUMSA) | E7: 0.0059
D8: Total | E8: =SUM(E5:E7) -> 1
C9: Source: Andrew Levy Employment Publications, Wage Settlement Survey Quarterly Report, December 2023, p9; CRA calculations
C10: a Or mandays. A manday is an industrial unit of production equal to the work one person can produce in a day. Typically 1 manday = 8 man hours = 40 hours per week.

Sheet Work stoppages

Sheet Work stoppages.09-23
B2: Work stoppages
C4: Work stoppages, 2009-23
D6: Year | E6: Number
D7: 2009 | E7: 51
D8: 2010 | E8: 74
D9: 2011 | E9: 67
D10: 2012 | E10: 99
D11: 2013 | E11: 114
D12: 2014 | E12: 88
D13: 2015 | E13: 110
D14: 2016 | E14: 122
D15: 2017 | E15: 132
D16: 2018 | E16: 165
D17: 2019 | E17: 157
D18: 2020 | E18: 117
D19: 2021 | E19: 66
D20: 2022 | E20: 87
D21: 2023 | E21: 97
D22: 2009-23 | E22: =(E21-E7)/E7 -> 0.9019607843
C23: Source: Department of Employment and Labour, Annual Industrial Action Report 2023, p3

Sheet Work stoppages+employees.17-23
A2: Employees involved in work stoppages by industry, 2017-23 | J2: Employees involved in work stoppages by industry, 2017 and 2023
B4: —2017— | D4: —2020— | F4: —2023—
A5: Sector | B5: —Employees involved—
A6: Agriculture | B6: 7048 | C6: =B6/Total443 -> 0.05632767233 | D6: 1576 | E6: =D6/D15 -> 0.01549473022 | F6: 5494 | G6: =F6/F15 -> 0.08017745866 | O6: 2017 | P6: 2023
A7: Mining | B7: 30439 | C7: 0.2432687313 | D7: 8587 | E7: =D7/D15 -> 0.08442464999 | F7: 12179 | G7: =F7/F15 -> 0.1777359427 | N7: Agriculture | O7: 0.05632767233 | P7: 0.08
A8: Manufacturing | B8: 8009 | C8: 0.06400799201 | D8: 17542 | E8: =D8/D15 -> 0.1724673588 | F8: 3297 | G8: =F8/F15 -> 0.04811523138 | N8: Mining | O8: 0.2432687313 | P8: 0.178
A9: Utilities | B9: 239 | C9: 0.00191008991 | D9: 0 | E9: =D9/D15 -> 0 | F9: 0 | G9: =F9/F15 -> 0 | N9: Manufacturing | O9: 0.06400799201 | P9: 0.048
A10: Construction | B10: 1674 | C10: 0.01337862138 | D10: 452 | E10: =D10/D15 -> 0.004443920088 | F10: 415 | G10: =F10/F15 -> 0.006056360638 | N10: Utilities | O10: 0.00191008991 | P10: 0
A11: Wholesale and retail trade | B11: 2161 | C11: 0.01727072927 | D11: 461 | E11: =D11/D15 -> 0.004532405223 | F11: 5615 | G11: =F11/F15 -> 0.08194328911 | N11: Construction | O11: 0.01337862138 | P11: 0.006
A12: Transport | B12: 15950 | C12: 0.1274725275 | D12: 2234 | E12: =D12/D15 -> 0.02196397672 | F12: 1608 | G12: =F12/F15 -> 0.02346657327 | N12: Wholesale and retail trade | O12: 0.01727072927 | P12: 0.082
A13: Finance | B13: 2629 | C13: 0.02101098901 | D13: 235 | E13: =D13/D15 -> 0.002310445179 | F13: 45 | G13: =F13/F15 -> 0.0006567138041 | N13: Transport | O13: 0.1274725275 | P13: 0.023
A14: Community services | B14: 56976 | C14: 0.4553526474 | D14: 70625 | E14: =D14/D15 -> 0.6943625138 | F14: 39870 | G14: =F14/F15 -> 0.5818484305 | N14: Finance | O14: 0.02101098901 | P14: 0.001
A15: Total | B15: 125125 | C15: 1 | D15: =SUM(D6:D14) -> 101712 | E15: =SUM(E6:E14) -> 1 | F15: =SUM(F6:F14) -> 68523 | G15: =SUM(G6:G14) -> 1 | N15: Community services | O15: 0.4553526474 | P15: 0.582
A16: Source: Department of Employment and Labour, Annual Industrial Action Report 2023, p3
A17: a CRA calculations.
